fUST/lending_fUST_20240115
["ID","MTS","AMOUNT","RATE_DAILY","PERIOD"]
[311599139,1705264246270,-500.0,0.00028219,2]
[311599141,1705264246350,-662.14,0.00028219,2]
[311599143,1705264246360,-633.41,0.00028219,2]
[311599145,1705264246369,-500.0,0.00028219,2]
[311599147,1705264246378,-500.0,0.00028219,2]
[311599149,1705264246387,-500.0,0.00028219,2]
[311599151,1705264246396,-1693.63,0.00028219,2]
[311599153,1705264246405,-500.0,0.00028219,2]
[311599155,1705264246414,-508.10253494,0.00028219,2]
[311599157,1705264246424,-1314.65,0.00028219,2]
[311599159,1705264246433,-1129.8,0.00028219,2]
[311599161,1705264246442,-500.0,0.00028219,2]
[311599163,1705264246451,-520.84,0.00028219,2]
[311599165,1705264246460,-786.77,0.00028219,2]
[311599167,1705264246469,-500.0,0.00028219,2]
[311599169,1705264246478,-500.0,0.00028219,2]
[311599171,1705264246488,-500.0,0.00028219,2]
[311599173,1705264246497,-500.0,0.00028219,2]
[311599175,1705264246506,-602.6750964,0.00028219,2]
[311599177,1705264246515,-1177.26,0.00028219,2]
[311599179,1705264246524,-1449.61,0.00028219,2]
[311599181,1705264246533,-500.0,0.00028219,2]
[311599183,1705264246543,-2627.62,0.00028219,2]
[311599185,1705264246554,-7106.64,0.00028219,2]
[311599187,1705264246563,-916.87,0.00028219,2]
[311599189,1705264246572,-500.0,0.00028219,2]
[311599191,1705264246581,-826.08,0.00028219,2]
[311599193,1705264246590,-1337.99,0.00028219,2]
[311599195,1705264246599,-500.0,0.00028219,2]
[311599197,1705264246609,-1566.52,0.00028219,2]
[311599199,1705264246618,-500.0,0.00028219,2]
[311599201,1705264246627,-1129.25,0.00028219,2]
[311599203,1705264246637,-500.0,0.00028219,2]
[311599205,1705264246646,-500.0,0.00028219,2]
[311599207,1705264246655,-500.0,0.00028219,2]
[311599209,1705264246665,-637.41,0.00028219,2]
[311599211,1705264246673,-416.6322573,0.00028219,2]
[311599213,1705264246682,-339.64201464,0.00028219,2]
[311599215,1705264246692,-500.0,0.00028219,2]
[311599217,1705264246701,-1637.5,0.00028219,2]
[311599219,1705264246710,-500.0,0.00028219,2]
[311599221,1705264246719,-500.0,0.00028219,2]
[311599223,1705264246729,-1561.61,0.00028219,2]
[311599225,1705264246738,-844.47,0.00028219,2]
[311599227,1705264246747,-500.0,0.00028219,2]
[311599229,1705264246756,-500.0,0.00028219,2]
[311599232,1705264246766,-500.0,0.00028219,2]
[311599234,1705264246775,-20131.27,0.00028219,2]
[311599235,1705264246785,-3193.22,0.00028219,2]
[311599238,1705264246797,-661.29,0.00028219,2]
[311599240,1705264246806,-956.61,0.00028219,2]
[311599242,1705264246816,-727.2,0.00028219,2]
[311599244,1705264246825,-138.18582824,0.00028219,2]
[311599298,1705264247342,-257.37,0.00027387,3]
[311599300,1705264247353,-500.0,0.00027397,2]
[311599302,1705264247362,-500.0,0.00027397,2]
[311599304,1705264247371,-500.0,0.00027397,2]
[311599306,1705264247380,-500.0,0.00027397,2]
[311599308,1705264247389,-500.0,0.00027671,2]
[311599310,1705264247399,-500.0,0.00027945,2]
[311599312,1705264247408,-7189.08417176,0.00028219,2]
[311599314,1705264247417,-500.0,0.00028219,2]
[311599316,1705264247427,-7039.43,0.00028219,2]
[311599318,1705264247436,-9189.85,0.00028219,2]
[311599320,1705264247446,-26737.39,0.00028219,2]
[311599322,1705264247455,-1791.56,0.00028219,2]
[311599324,1705264247464,-500.0,0.00028219,2]
[311599326,1705264247473,-500.0,0.00028219,2]
[311599328,1705264247482,-4564.66,0.00028219,2]
[311599330,1705264247492,-500.0,0.00028219,2]
[311599332,1705264247501,-500.0,0.00028219,2]
[311599334,1705264247511,-525.21,0.00028219,2]
[311599336,1705264247520,-500.0,0.00028219,2]
[311599338,1705264247530,-500.0,0.00028219,2]
[311599341,1705264247539,-500.0,0.00028219,2]
[311599343,1705264247548,-603.30534561,0.00028219,2]
[311599345,1705264247558,-500.0,0.00028219,2]
[311599347,1705264247567,-378.84943896,0.00028219,2]
[311599349,1705264247576,-500.0,0.00028219,2]
[311599351,1705264247587,-500.0,0.00028219,2]
[311599353,1705264247596,-500.0,0.00028219,2]
[311599355,1705264247606,-500.0,0.00028219,2]
[311599357,1705264247615,-853.34,0.00028219,2]
[311599359,1705264247625,-500.0,0.00028219,2]
[311599361,1705264247634,-500.0,0.00028219,2]
[311599363,1705264247644,-500.0,0.00028219,2]
[311599365,1705264247653,-2618.63,0.00028219,2]
[311599367,1705264247662,-2567.95,0.00028219,2]
[311599369,1705264247671,-369.16818414,0.00028219,2]
[311599371,1705264247683,-130.83181586,0.00028219,2]
[311599373,1705264247693,-200.0,0.00028279,15]
[311599375,1705264247702,-154.71243795,0.00028339,2]
[311599377,1705264247712,-500.0,0.00028356,2]
[311599379,1705264247722,-540.92,0.00028492,2]
[311599381,1705264247731,-540.92,0.00028492,2]
[311599383,1705264247740,-540.92,0.00028492,2]
[311599385,1705264247749,-224.63610238,0.00028492,2]
[311599421,1705264248066,-198.8089634,0.000269,2]
[311599423,1705264248075,-500.0,0.00027397,2]
[311599425,1705264248086,-316.28389762,0.00028492,2]
[311599427,1705264248095,-540.92,0.00028492,2]
[311599429,1705264248104,-540.96,0.00028492,2]
[311599431,1705264248113,-163.025478,0.00028493,2]
[311599433,1705264248123,-163.025478,0.00028493,2]
[311599435,1705264248133,-151.0,0.00028493,2]
[311599437,1705264248145,-151.0,0.00028493,2]
[311599439,1705264248154,-1480.679277,0.00028493,2]
[311599441,1705264248164,-1480.679277,0.00028493,2]
[311599443,1705264248175,-1480.679277,0.00028493,2]
[311599445,1705264248185,-1365.63835198,0.00028493,2]
[311599447,1705264248197,-115.04092502,0.00028493,2]
[311599449,1705264248206,-2717.640134,0.00028493,2]
[311599451,1705264248215,-2717.640134,0.00028493,2]
[311599453,1705264248224,-39.58887994,0.00028493,2]
[311599474,1705264248411,-500.0,0.00027671,2]
[311599476,1705264248420,-460.41112006,0.00028493,2]
[311599478,1705264248429,-500.0,0.00028493,2]
[311599480,1705264248438,-593.88964786,0.00028493,2]
[311599482,1705264248447,-500.0,0.00028493,2]
[311599484,1705264248456,-500.0,0.00028493,2]
[311599486,1705264248465,-500.0,0.00028493,2]
[311599488,1705264248474,-1533.84,0.00028493,2]
[311599490,1705264248484,-244.35923208,0.00028493,2]
[311610267,1705265432386,-155.0294556,0.00025642,4]
[311610269,1705265432396,-166.666666,0.0002575,2]
[311610271,1705265432405,-2005.4381708,0.00026399,2]
[311610273,1705265432415,-628.03375775,0.000264,2]
[311610275,1705265432424,-154.65,0.00027387,3]
[311610277,1705265432433,-262.46,0.00027387,3]
[311610279,1705265432442,-218.71,0.00027387,3]
[311610281,1705265432451,-182.26,0.00027387,3]
[311610283,1705265432460,-204.91523584,0.00027395,2]
[311610360,1705265438393,-151.88,0.00027387,3]
[311610362,1705265438403,-2435.86108579,0.00027395,2]
[311610364,1705265438414,-1157.46997482,0.00027395,2]
[311610366,1705265438426,-498.4394927,0.00027395,2]
[311610368,1705265438435,-155.10702385,0.00027395,2]
[311610370,1705265438444,-540.1999381,0.00027395,2]
[311610372,1705265438453,-314.30408612,0.00027395,2]
[311610374,1705265438463,-848.51221584,0.00027395,2]
[311610376,1705265438472,-196.17678123,0.00027395,2]
[311610378,1705265438480,-156.38040358,0.00027396,2]
[311610381,1705265438492,-413.50041826,0.00027396,2]
[311610383,1705265438501,-677.43954104,0.00027396,2]
[311610385,1705265438510,-500.0,0.00027397,2]
[311610387,1705265438519,-509.8453058,0.00027397,2]
[311610389,1705265438528,-500.0,0.00027397,2]
[311610391,1705265438538,-500.0,0.00027397,2]
[311610392,1705265438547,-500.0,0.00027397,2]
[311610394,1705265438556,-500.0,0.00027397,2]
[311610396,1705265438565,-500.0,0.00027397,2]
[311610398,1705265438574,-500.0,0.00027397,2]
[311610400,1705265438583,-500.0,0.00027397,2]
[311610413,1705265438689,-500.0,0.00027397,2]
[311610415,1705265438698,-500.0,0.00027397,2]
[311610417,1705265438707,-500.0,0.00027397,2]
[311610419,1705265438716,-500.0,0.00027397,2]
[311610421,1705265438725,-500.0,0.00027397,2]
[311610423,1705265438735,-500.0,0.00027397,2]
[311610425,1705265438743,-500.0,0.00027397,2]
[311610427,1705265438752,-500.0,0.00027397,2]
[311610429,1705265438761,-500.0,0.00027397,2]
[311610431,1705265438770,-500.0,0.00027397,2]
[311610433,1705265438780,-1428.3,0.00027397,2]
[311610435,1705265438789,-521.31812588,0.00027397,2]
[311610437,1705265438798,-500.0,0.00027397,2]
[311610439,1705265438807,-500.0,0.00027397,2]
[311610441,1705265438818,-500.0,0.00027397,2]
[311610443,1705265438827,-174.42268103,0.00027397,2]
[311610445,1705265438836,-500.0,0.00027397,2]
[311610447,1705265438844,-500.0,0.00027397,2]
[311610449,1705265438853,-500.0,0.00027397,2]
[311610451,1705265438862,-500.0,0.00027397,2]
[311610453,1705265438871,-500.0,0.00027397,2]
[311610455,1705265438880,-500.0,0.00027397,2]
[311610457,1705265438889,-500.0,0.00027397,2]
[311610459,1705265438898,-191.76498961,0.00027397,2]
[311610461,1705265438907,-500.0,0.00027397,2]
[311610463,1705265438916,-500.0,0.00027397,2]
[311610465,1705265438925,-500.0,0.00027397,2]
[311610467,1705265438934,-500.0,0.00027397,2]
[311610469,1705265438943,-500.0,0.00027397,2]
[311610471,1705265438952,-500.0,0.00027397,2]
[311610473,1705265438961,-500.0,0.00027397,2]
[311610475,1705265438970,-500.0,0.00027397,2]
[311610477,1705265438979,-500.0,0.00027397,2]
[311610479,1705265438990,-500.0,0.00027397,2]
[311610481,1705265438999,-639.85514929,0.00027397,2]
[311610483,1705265439008,-662.55,0.00027397,2]
[311610485,1705265439016,-500.0,0.00027397,2]
[311610486,1705265439025,-500.0,0.00027397,2]
[311610488,1705265439035,-500.40980905,0.00027397,2]
[311610490,1705265439043,-500.0,0.00027397,2]
[311610492,1705265439053,-500.0,0.00027397,2]
[311610494,1705265439062,-500.0,0.00027397,2]
[311610496,1705265439072,-500.0,0.00027397,2]
[311610498,1705265439081,-500.0,0.00027397,2]
[311610500,1705265439090,-503.5641367,0.00027397,2]
[311610502,1705265439099,-500.0,0.00027397,2]
[311610504,1705265439108,-500.0,0.00027397,2]
[311610506,1705265439117,-500.0,0.00027397,2]
[311610509,1705265439128,-1214.69,0.00027397,2]
[311610510,1705265439137,-500.0,0.00027397,2]
[311610512,1705265439146,-500.0,0.00027397,2]
[311610514,1705265439154,-500.0,0.00027397,2]
[311610516,1705265439164,-538.42213819,0.00027397,2]
[311610518,1705265439172,-500.0,0.00027397,2]
[311610520,1705265439181,-500.0,0.00027397,2]
[311610522,1705265439190,-514.75649595,0.00027397,2]
[311610524,1705265439200,-500.0,0.00027397,2]
[311610526,1705265439209,-300.0,0.00027397,2]
[311610528,1705265439218,-583.57,0.00027397,2]
[311610530,1705265439227,-502.33023252,0.00027397,2]
[311610532,1705265439236,-500.0,0.00027397,2]
[311610534,1705265439245,-156.69701494,0.00027397,2]
[311610536,1705265439254,-1719.71,0.00027397,2]
[311610538,1705265439263,-878.83,0.00027397,2]
[311610540,1705265439272,-500.94425722,0.00027397,2]
[311610542,1705265439281,-500.0,0.00027397,2]
[311610544,1705265439291,-500.0,0.00027397,2]
[311610546,1705265439300,-500.0,0.00027397,2]
[311610549,1705265439310,-500.0,0.00027397,2]
[311610550,1705265439319,-500.0,0.00027397,2]
[311610552,1705265439328,-503.33,0.00027397,2]
[311610554,1705265439338,-500.0,0.00027397,2]
[311610556,1705265439346,-373.72376298,0.00027397,2]
[311610558,1705265439355,-500.0,0.00027397,2]
[311610560,1705265439364,-500.38894424,0.00027397,2]
[311610563,1705265439382,-1000.0,0.00027397,2]
[311610565,1705265439394,-500.0,0.00027397,2]
[311610568,1705265439404,-504.32,0.00027397,2]
[311610570,1705265439414,-1623.89718729,0.00027397,2]
[311610572,1705265439424,-500.0,0.00027397,2]
[311610574,1705265439434,-500.0,0.00027397,2]
[311610576,1705265439444,-500.0,0.00027397,2]
[311610578,1705265439453,-500.0,0.00027397,2]
[311610580,1705265439463,-500.0,0.00027397,2]
[311610582,1705265439472,-500.0,0.00027397,2]
[311610584,1705265439482,-500.0,0.00027397,2]
[311610586,1705265439491,-500.0,0.00027397,2]
[311610588,1705265439500,-860.02,0.00027397,2]
[311610590,1705265439510,-225.43281937,0.00027397,2]
[311610592,1705265439519,-500.0,0.00027397,2]
[311610594,1705265439529,-500.0,0.00027397,2]
[311610596,1705265439538,-500.0,0.00027397,2]
[311610598,1705265439548,-232.90343544,0.00027397,2]
[311610600,1705265439557,-500.0,0.00027397,2]
[311610602,1705265439566,-500.0,0.00027397,2]
[311610604,1705265439579,-500.0,0.00027397,2]
[311610606,1705265439590,-500.0,0.00027397,2]
[311610608,1705265439599,-500.0,0.00027397,2]
[311610610,1705265439609,-500.0,0.00027397,2]
[311610612,1705265439618,-572.49159193,0.00027397,2]
[311610614,1705265439628,-516.52958642,0.00027397,2]
[311610616,1705265439638,-500.0,0.00027397,2]
[311610618,1705265439647,-501.32142053,0.00027397,2]
[311610620,1705265439656,-500.0,0.00027397,2]
[311610622,1705265439665,-500.0,0.00027397,2]
[311610624,1705265439675,-661.29,0.00027397,2]
[311610626,1705265439684,-572.34395798,0.00027397,2]
[311610628,1705265439693,-559.17037856,0.00027397,2]
[311610630,1705265439703,-500.0,0.00027397,2]
[311610632,1705265439713,-500.0,0.00027397,2]
[311610634,1705265439724,-167.86399626,0.00027397,2]
[311610636,1705265439733,-503.48256787,0.00027397,2]
[311610638,1705265439742,-500.0,0.00027397,2]
[311610640,1705265439751,-500.0,0.00027397,2]
[311610643,1705265439762,-500.0,0.00027397,2]
[311610645,1705265439771,-500.0,0.00027397,2]
[311610647,1705265439780,-526.06326332,0.00027397,2]
[311610648,1705265439790,-500.0,0.00027397,2]
[311610651,1705265439801,-382.37264958,0.00027397,2]
[311610653,1705265439810,-4550.62,0.00027397,2]
[311610655,1705265439820,-500.0,0.00027397,2]
[311610657,1705265439829,-500.0,0.00027397,2]
[311610659,1705265439840,-500.0,0.00027397,2]
[311610660,1705265439849,-505.86534392,0.00027397,2]
[311610661,1705265439858,-500.0,0.00027397,2]
[311610662,1705265439867,-500.0,0.00027397,2]
[311610663,1705265439876,-574.05346898,0.00027397,2]
[311610664,1705265439885,-500.0,0.00027397,2]
[311610665,1705265439894,-500.0,0.00027397,2]
[311610666,1705265439903,-500.0,0.00027397,2]
[311610667,1705265439913,-500.0,0.00027397,2]
[311610669,1705265439922,-500.0,0.00027397,2]
[311610671,1705265439931,-500.0,0.00027397,2]
[311610673,1705265439940,-500.0,0.00027397,2]
[311610675,1705265439949,-500.0,0.00027397,2]
[311610677,1705265439959,-500.0,0.00027397,2]
[311610679,1705265439968,-1404.93,0.00027397,2]
[311610681,1705265439976,-500.0,0.00027397,2]
[311610683,1705265439985,-500.0,0.00027397,2]
[311610685,1705265439994,-500.0,0.00027397,2]
[311610687,1705265440004,-508.708221,0.00027397,2]
[311610689,1705265440014,-500.0,0.00027397,2]
[311610691,1705265440023,-221.70878892,0.00027397,2]
[311610693,1705265440032,-500.0,0.00027397,2]
[311610695,1705265440041,-517.97504312,0.00027397,2]
[311610697,1705265440050,-500.0,0.00027397,2]
[311610700,1705265440060,-500.0,0.00027397,2]
[311610702,1705265440069,-500.0,0.00027397,2]
[311610704,1705265440078,-530.69,0.00027397,2]
[311610706,1705265440089,-500.0,0.00027397,2]
[311610708,1705265440099,-530.69,0.00027397,2]
[311610710,1705265440108,-300.78084673,0.00027397,2]
[311610712,1705265440118,-530.69,0.00027397,2]
[311610714,1705265440126,-530.69,0.00027397,2]
[311610716,1705265440136,-530.69,0.00027397,2]
[311610718,1705265440145,-500.0,0.00027397,2]
[311610720,1705265440155,-500.0,0.00027397,2]
[311610722,1705265440164,-500.0,0.00027397,2]
[311610724,1705265440173,-381.60232911,0.00027397,2]
[311610726,1705265440182,-500.0,0.00027397,2]
[311610728,1705265440190,-500.0,0.00027397,2]
[311610730,1705265440199,-500.0,0.00027397,2]
[311610732,1705265440209,-500.0,0.00027397,2]
[311610734,1705265440218,-500.0,0.00027397,2]
[311610736,1705265440228,-500.0,0.00027397,2]
[311610738,1705265440238,-500.0,0.00027397,2]
[311610740,1705265440247,-500.0,0.00027397,2]
[311610742,1705265440256,-500.0,0.00027397,2]
[311610744,1705265440265,-1902.59,0.00027397,2]
[311610746,1705265440275,-200.0,0.00027397,2]
[311610748,1705265440284,-500.0,0.00027397,2]
[311610750,1705265440293,-500.0,0.00027397,2]
[311610752,1705265440303,-500.0,0.00027397,2]
[311610754,1705265440312,-500.0,0.00027397,2]
[311610756,1705265440321,-2688.55,0.00027397,2]
[311610758,1705265440331,-500.0,0.00027397,2]
[311610761,1705265440342,-753.8,0.00027397,2]
[311610763,1705265440354,-500.0,0.00027397,2]
[311610765,1705265440363,-1223.49,0.00027397,2]
[311610767,1705265440372,-500.0,0.00027397,2]
[311610769,1705265440381,-500.0,0.00027397,2]
[311610771,1705265440390,-500.0,0.00027397,2]
[311610773,1705265440399,-500.0,0.00027397,2]
[311610775,1705265440408,-325.94231733,0.00027397,2]
[311610777,1705265440417,-500.0,0.00027397,2]
[311610779,1705265440426,-2781.8,0.00027397,2]
[311610781,1705265440435,-1509.52,0.00027397,2]
[311610783,1705265440445,-500.0,0.00027397,2]
[311610785,1705265440453,-500.0,0.00027397,2]
[311610787,1705265440462,-500.0,0.00027397,2]
[311610789,1705265440472,-500.0,0.00027397,2]
[311610791,1705265440481,-465.19455805,0.00027397,2]
[311610793,1705265440490,-500.0,0.00027397,2]
[311610795,1705265440499,-500.0,0.00027397,2]
[311610797,1705265440508,-986.56,0.00027397,2]
[311610799,1705265440517,-500.0,0.00027397,2]
[311610801,1705265440526,-500.0,0.00027397,2]
[311610803,1705265440535,-355.40945307,0.00027397,2]
[311610805,1705265440544,-507.57844526,0.00027397,2]
[311610807,1705265440554,-500.0,0.00027397,2]
[311610809,1705265440562,-500.0,0.00027397,2]
[311610811,1705265440571,-500.0,0.00027397,2]
[311610813,1705265440580,-500.0,0.00027397,2]
[311610815,1705265440590,-500.0,0.00027397,2]
[311610817,1705265440599,-500.0,0.00027397,2]
[311610819,1705265440608,-500.0,0.00027397,2]
[311610821,1705265440617,-500.0,0.00027397,2]
[311610823,1705265440627,-500.0,0.00027397,2]
[311610825,1705265440636,-500.0,0.00027397,2]
[311610827,1705265440645,-215.85448759,0.00027397,2]
[311610829,1705265440654,-500.0,0.00027397,2]
[311610831,1705265440664,-500.0,0.00027397,2]
[311610833,1705265440673,-1574.42,0.00027397,2]
[311610835,1705265440682,-500.0,0.00027397,2]
[311610837,1705265440692,-224.37689626,0.00027397,2]
[311610849,1705265440792,-261.96373897,0.00027397,2]
[311610851,1705265440801,-817.78,0.00027397,2]
[311610853,1705265440810,-530.50063777,0.00027397,2]
[311610855,1705265440819,-501.52822313,0.00027397,2]
[311610857,1705265440828,-168.28933158,0.00027397,2]
[311610859,1705265440838,-500.0,0.00027397,2]
[311610861,1705265440847,-500.0,0.00027397,2]
[311610863,1705265440856,-500.0,0.00027397,2]
[311610865,1705265440866,-1229.13,0.00027397,2]
[311610867,1705265440875,-500.0,0.00027397,2]
[311610869,1705265440883,-500.0,0.00027397,2]
[311610871,1705265440892,-789.88,0.00027397,2]
[311610873,1705265440902,-500.0,0.00027397,2]
[311610875,1705265440912,-7667.31,0.00027397,2]
[311610877,1705265440921,-500.0,0.00027397,2]
[311610879,1705265440930,-500.0,0.00027397,2]
[311610881,1705265440939,-253.57805257,0.00027397,2]
[311610883,1705265440948,-500.0,0.00027397,2]
[311610885,1705265440957,-500.0,0.00027397,2]
[311610887,1705265440967,-500.0,0.00027397,2]
[311610889,1705265440976,-500.0,0.00027397,2]
[311610891,1705265440985,-500.0,0.00027397,2]
[311610894,1705265440995,-500.0,0.00027397,2]
[311610896,1705265441004,-500.0,0.00027397,2]
[311610898,1705265441014,-500.0,0.00027397,2]
[311610899,1705265441022,-500.0,0.00027397,2]
[311610902,1705265441032,-508.05153115,0.00027397,2]
[311610904,1705265441041,-414.16133919,0.00027397,2]
[311610906,1705265441050,-1392.78,0.00027397,2]
[311610907,1705265441061,-500.0,0.00027397,2]
[311610910,1705265441071,-500.0,0.00027397,2]
[311610912,1705265441080,-500.0,0.00027397,2]
[311610914,1705265441089,-155.39027644,0.00027397,2]
[311610915,1705265441098,-507.33239193,0.00027397,2]
[311610917,1705265441107,-500.0,0.00027397,2]
[311610920,1705265441117,-500.0,0.00027397,2]
[311610921,1705265441126,-500.0,0.00027397,2]
[311610923,1705265441135,-500.0,0.00027397,2]
[311610926,1705265441144,-500.0,0.00027397,2]
[311610928,1705265441153,-500.0,0.00027397,2]
[311610929,1705265441162,-500.0,0.00027397,2]
[311610931,1705265441171,-202.62779638,0.00027397,2]
[311610934,1705265441180,-500.0,0.00027397,2]
[311610936,1705265441189,-500.0,0.00027397,2]
[311610938,1705265441198,-500.0,0.00027397,2]
[311610940,1705265441207,-500.0,0.00027397,2]
[311610941,1705265441216,-500.0,0.00027397,2]
[311610942,1705265441225,-287.40897555,0.00027397,2]
[311610944,1705265441234,-1115.33,0.00027397,2]
[311610945,1705265441244,-500.0,0.00027397,2]
[311610947,1705265441254,-1632.39,0.00027397,2]
[311610949,1705265441263,-544.83777712,0.00027397,2]
[311610951,1705265441273,-331.78472333,0.00027397,2]
[311610953,1705265441282,-500.0,0.00027397,2]
[311610955,1705265441291,-500.0,0.00027397,2]
[311610957,1705265441301,-500.0,0.00027397,2]
[311610959,1705265441310,-500.0,0.00027397,2]
[311610961,1705265441319,-592.04810847,0.00027397,2]
[311610963,1705265441328,-500.0,0.00027397,2]
[311610965,1705265441338,-500.0,0.00027397,2]
[311610967,1705265441347,-500.0,0.00027397,2]
[311610969,1705265441357,-500.0,0.00027397,2]
[311610971,1705265441366,-500.0,0.00027397,2]
[311610973,1705265441375,-536.82407852,0.00027397,2]
[311610975,1705265441384,-500.0,0.00027397,2]
[311610977,1705265441393,-521.1942348,0.00027397,2]
[311610979,1705265441403,-337.43216097,0.00027397,2]
[311610981,1705265441412,-500.0,0.00027397,2]
[311610983,1705265441422,-628.49457339,0.00027397,2]
[311610985,1705265441431,-510.88502478,0.00027397,2]
[311610987,1705265441440,-500.0,0.00027397,2]
[311610989,1705265441449,-1723.04,0.00027397,2]
[311610991,1705265441458,-500.0,0.00027397,2]
[311610993,1705265441468,-1698.92,0.00027397,2]
[311610995,1705265441477,-500.0,0.00027397,2]
[311610997,1705265441486,-500.0,0.00027397,2]
[311610999,1705265441496,-248.67799791,0.00027397,2]
[311611001,1705265441505,-500.0,0.00027397,2]
[311611003,1705265441514,-516.84449583,0.00027397,2]
[311611005,1705265441524,-500.0,0.00027397,2]
[311611007,1705265441533,-500.0,0.00027397,2]
[311611009,1705265441541,-500.0,0.00027397,2]
[311611011,1705265441551,-1000.0,0.00027397,2]
[311611013,1705265441560,-3330.12,0.00027397,2]
[311611015,1705265441569,-500.0,0.00027397,2]
[311611017,1705265441578,-500.0,0.00027397,2]
[311611019,1705265441587,-880.01,0.00027397,2]
[311611021,1705265441595,-7325.02,0.00027397,2]
[311611023,1705265441604,-500.0,0.00027397,2]
[311611025,1705265441613,-20891.32,0.00027397,2]
[311611027,1705265441622,-500.0,0.00027397,2]
[311611029,1705265441631,-500.0,0.00027397,2]
[311611031,1705265441639,-500.0,0.00027397,2]
[311611033,1705265441648,-500.0,0.00027397,2]
[311611035,1705265441657,-9190.17,0.00027397,2]
[311611037,1705265441666,-336.65608746,0.00027397,2]
[311611039,1705265441675,-500.0,0.00027397,2]
[311611041,1705265441684,-500.0,0.00027397,2]
[311611043,1705265441693,-155.0,0.00027397,2]
[311611045,1705265441702,-500.0,0.00027397,2]
[311611047,1705265441711,-500.0,0.00027397,2]
[311611049,1705265441723,-836.49,0.00027397,2]
[311611051,1705265441732,-500.0,0.00027397,2]
[311611053,1705265441741,-500.0,0.00027397,2]
[311611055,1705265441750,-500.0,0.00027397,2]
[311611057,1705265441760,-526.73,0.00027397,2]
[311611059,1705265441768,-500.0,0.00027397,2]
[311611061,1705265441778,-500.0,0.00027397,2]
[311611063,1705265441787,-522.17,0.00027397,2]
[311611065,1705265441797,-500.0,0.00027397,2]
[311611067,1705265441807,-500.0,0.00027397,2]
[311611069,1705265441816,-500.0,0.00027397,2]
[311611071,1705265441825,-500.0,0.00027397,2]
[311611073,1705265441834,-219.2266799,0.00027397,2]
[311611075,1705265441844,-500.0,0.00027397,2]
[311611077,1705265441853,-27844.96,0.00027397,2]
[311611079,1705265441862,-528.45,0.00027397,2]
[311611081,1705265441871,-500.0,0.00027397,2]
[311611083,1705265441881,-2509.52,0.00027397,2]
[311611085,1705265441890,-500.0,0.00027397,2]
[311611087,1705265441899,-1033.57,0.00027397,2]
[311611089,1705265441908,-500.0,0.00027397,2]
[311611091,1705265441917,-261.02864836,0.00027397,2]
[311611093,1705265441926,-7326.83,0.00027397,2]
[311611095,1705265441934,-401.11191083,0.00027397,2]
[311611097,1705265441943,-534.86153431,0.00027397,2]
[311611099,1705265441952,-601.89,0.00027397,2]
[311611101,1705265441962,-500.0,0.00027397,2]
[311611103,1705265441972,-500.0,0.00027397,2]
[311611105,1705265441980,-500.0,0.00027397,2]
[311611107,1705265441989,-500.0,0.00027397,2]
[311611109,1705265441998,-500.0,0.00027397,2]